[Event "December 12 Early 2023"]
[Site "https://www.chess.com"]
[Date "2023.12.12"]
[Round "9"]
[White "Yushko, Olga"]
[Black "MasterofMasters2006"]
[Result "0-1"]
[Board "149"]
[TimeControl "180+1"]
[WhiteFideId "14114500"]
[WhiteElo "2100"]
[BlackElo "2052"]
[WhiteTeam "UKR"]
[WhiteClock "0:00:50"]
[BlackClock "0:00:23"]

1. d4 {[%clk 0:02:56]}  d5 {[%clk 0:02:59]} 2. c4 {[%clk 0:02:50]}  e6 {[%clk 0:02:58]} 3. cxd5 {[%clk 0:02:50]}  exd5 {[%clk 0:02:58]} 4. Nc3 {[%clk 0:02:51]}  c6 {[%clk 0:02:58]} 5. Nf3 {[%clk 0:02:50]}  Nf6 {[%clk 0:02:59]} 6. Bg5 {[%clk 0:02:51]}  Be7 {[%clk 0:02:59]} 7. e3 {[%clk 0:02:51]}  Bf5 {[%clk 0:02:59]} 8. Bd3 {[%clk 0:02:51]}  Bxd3 {[%clk 0:02:59]} 9. Qxd3 {[%clk 0:02:52]}  h6 {[%clk 0:02:59]} 10. Bh4 {[%clk 0:02:52]}  Nbd7 {[%clk 0:02:58]} 11. O-O {[%clk 0:02:52]}  O-O {[%clk 0:02:58]} 12. Rab1 {[%clk 0:02:52]}  Nb6 {[%clk 0:02:55]} 13. b4 {[%clk 0:02:51]}  Nc4 {[%clk 0:02:55]} 14. b5 {[%clk 0:02:51]}  Nd7 {[%clk 0:02:49]} 15. Bg3 {[%clk 0:02:48]}  Ndb6 {[%clk 0:02:44]} 16. a4 {[%clk 0:02:45]}  Bd6 {[%clk 0:02:41]} 17. bxc6 {[%clk 0:02:39]}  bxc6 {[%clk 0:02:39]} 18. e4 {[%clk 0:02:35]}  Bxg3 {[%clk 0:02:37]} 19. hxg3 {[%clk 0:02:36]}  dxe4 {[%clk 0:02:27]} 20. Nxe4 {[%clk 0:02:36]}  a5 {[%clk 0:02:17]} 21. Rfc1 {[%clk 0:02:36]}  Qd5 {[%clk 0:02:14]} 22. Nc5 {[%clk 0:02:23]}  Rad8 {[%clk 0:02:12]} 23. Nb7 {[%clk 0:02:20]}  Rd7 {[%clk 0:02:10]} 24. Nc5 {[%clk 0:02:20]}  Qxc5 {[%clk 0:02:09]} 25. Rxb6 {[%clk 0:02:14]}  Qxb6 {[%clk 0:02:03]} 26. Qxc4 {[%clk 0:02:12]}  Rfd8 {[%clk 0:01:58]} 27. Ne5 {[%clk 0:02:06]}  Rd5 {[%clk 0:01:38]} 28. Nxc6 {[%clk 0:02:02]}  Rxd4 {[%clk 0:01:27]} 29. Nxd4 {[%clk 0:01:55]}  Qxd4 {[%clk 0:01:27]} 30. Qb5 {[%clk 0:01:51]}  Qd2 {[%clk 0:01:21]} 31. Rb1 {[%clk 0:01:48]}  Rc8 {[%clk 0:01:16]} 32. Rf1 {[%clk 0:01:42]}  g6 {[%clk 0:01:12]} 33. Kh2 {[%clk 0:01:34]}  Rd8 {[%clk 0:01:02]} 34. Qb6 {[%clk 0:01:27]}  Rd5 {[%clk 0:00:58]} 35. g4 {[%clk 0:01:24]}  Qf4+ {[%clk 0:00:54]} 36. g3 {[%clk 0:01:24]}  Qxg4 {[%clk 0:00:50]} 37. Qb8+ {[%clk 0:01:23]}  Kg7 {[%clk 0:00:50]} 38. Qb2+ {[%clk 0:01:22]}  Qd4 {[%clk 0:00:50]} 39. Qxd4+ {[%clk 0:01:17]}  Rxd4 {[%clk 0:00:51]} 40. Ra1 {[%clk 0:01:17]}  Kf6 {[%clk 0:00:50]} 41. Kg2 {[%clk 0:01:18]}  Ke5 {[%clk 0:00:51]} 42. Kf3 {[%clk 0:01:18]}  Kd5 {[%clk 0:00:52]} 43. Ke3 {[%clk 0:01:19]}  Re4+ {[%clk 0:00:47]} 44. Kd3 {[%clk 0:01:18]}  Rb4 {[%clk 0:00:47]} 45. Ra2 {[%clk 0:01:15]}  Rb3+ {[%clk 0:00:42]} 46. Ke2 {[%clk 0:01:14]}  Kc4 {[%clk 0:00:40]} 47. Rc2+ {[%clk 0:01:14]}  Kb4 {[%clk 0:00:41]} 48. Rc7 {[%clk 0:01:14]}  Rb2+ {[%clk 0:00:29]} 49. Ke3 {[%clk 0:01:13]}  Kxa4 {[%clk 0:00:28]} 50. Rxf7 {[%clk 0:01:13]}  Rb6 {[%clk 0:00:26]} 51. Kd3 {[%clk 0:01:10]}  Kb3 {[%clk 0:00:26]} 52. Rh7 {[%clk 0:01:07]}  g5 {[%clk 0:00:23]} 53. Rf7 {[%clk 0:01:03]}  a4 {[%clk 0:00:23]} 54. Ke4 {[%clk 0:00:54]}  a3 {[%clk 0:00:23]} 55. Rf3+ {[%clk 0:00:50]}  Kb2 {[%clk 0:00:23]} 0-1

[Event "December 12 Early 2023"]
[Site "https://www.chess.com"]
[Date "2023.12.12"]
[Round "10"]
[White "Aronian, Levon"]
[Black "Fedoseev, Vladimir"]
[Result "0-1"]
[Board "2"]
[TimeControl "180+1"]
[WhiteFideId "13300474"]
[BlackFideId "24130737"]
[WhiteElo "3124"]
[BlackElo "3057"]
[WhiteTeam "USA"]
[BlackTeam "SLO"]
[WhiteClock "0:00:00"]
[BlackClock "0:00:23"]

1. e4 {[%clk 0:03:00]}  e5 {[%clk 0:03:00]} 2. Bc4 {[%clk 0:03:00]}  Nf6 {[%clk 0:02:59]} 3. d3 {[%clk 0:03:00]}  Bc5 {[%clk 0:02:54]} 4. Nf3 {[%clk 0:02:59]}  d6 {[%clk 0:02:54]} 5. O-O {[%clk 0:02:59]}  h6 {[%clk 0:02:51]} 6. c3 {[%clk 0:02:58]}  O-O {[%clk 0:02:50]} 7. d4 {[%clk 0:02:53]}  Bb6 {[%clk 0:02:40]} 8. a4 {[%clk 0:02:01]}  a5 {[%clk 0:02:16]} 9. dxe5 {[%clk 0:01:15]}  Nxe4 {[%clk 0:02:16]} 10. Bd5 {[%clk 0:01:16]}  Nxf2 {[%clk 0:01:56]} 11. Rxf2 {[%clk 0:01:15]}  dxe5 {[%clk 0:01:56]} 12. Bb3 {[%clk 0:01:06]}  Be6 {[%clk 0:01:33]} 13. Nbd2 {[%clk 0:00:49]}  Bxb3 {[%clk 0:01:24]} 14. Qxb3 {[%clk 0:00:50]}  Nd7 {[%clk 0:01:02]} 15. Ne4 {[%clk 0:00:46]}  Nc5 {[%clk 0:00:51]} 16. Nxc5 {[%clk 0:00:39]}  Bxc5 {[%clk 0:00:51]} 17. Kf1 {[%clk 0:00:39]}  Bxf2 {[%clk 0:00:49]} 18. Kxf2 {[%clk 0:00:39]}  e4 {[%clk 0:00:48]} 19. Nd4 {[%clk 0:00:32]}  Qh4+ {[%clk 0:00:49]} 20. Kf1 {[%clk 0:00:32]}  Ra6 {[%clk 0:00:41]} 21. Be3 {[%clk 0:00:26]}  Qxh2 {[%clk 0:00:40]} 22. Re1 {[%clk 0:00:16]}  Rf6+ {[%clk 0:00:36]} 23. Ke2 {[%clk 0:00:17]}  Qxg2+ {[%clk 0:00:36]} 24. Kd1 {[%clk 0:00:17]}  Rf1 {[%clk 0:00:35]} 25. Qd5 {[%clk 0:00:09]}  c6 {[%clk 0:00:31]} 26. Qd6 {[%clk 0:00:05]}  f5 {[%clk 0:00:27]} 27. Ne6 {[%clk 0:00:03]}  Rf6 {[%clk 0:00:25]} 28. Bd4 {[%clk 0:00:03]}  Qf3+ {[%clk 0:00:23]} 29. Kd2 {[%clk 0:00:00]}  Qd3+ {[%clk 0:00:23]} 0-1

[Event "December 12 Early 2023"]
[Site "https://www.chess.com"]
[Date "2023.12.12"]
[Round "10"]
[White "Xiong, Jeffery"]
[Black "Andreikin, Dmitry"]
[Result "1/2-1/2"]
[Board "3"]
[TimeControl "180+1"]
[WhiteFideId "2047640"]
[BlackFideId "4158814"]
[WhiteElo "3049"]
[BlackElo "3100"]
[WhiteTeam "USA"]
[BlackTeam "FID"]
[WhiteClock "0:00:17"]
[BlackClock "0:00:04"]

1. Nf3 {[%clk 0:03:00]}  b5 {[%clk 0:02:58]} 2. e4 {[%clk 0:03:00]}  Bb7 {[%clk 0:02:58]} 3. Bxb5 {[%clk 0:03:00]}  Bxe4 {[%clk 0:02:58]} 4. O-O {[%clk 0:03:01]}  c6 {[%clk 0:02:58]} 5. Ba4 {[%clk 0:03:01]}  Qa5 {[%clk 0:02:58]} 6. Nc3 {[%clk 0:03:00]}  Bxf3 {[%clk 0:02:56]} 7. Qxf3 {[%clk 0:03:00]}  Nf6 {[%clk 0:02:57]} 8. Bb3 {[%clk 0:02:55]}  e6 {[%clk 0:02:57]} 9. Ne2 {[%clk 0:02:54]}  d5 {[%clk 0:02:54]} 10. d3 {[%clk 0:02:52]}  Nbd7 {[%clk 0:02:46]} 11. Rd1 {[%clk 0:02:48]}  Bd6 {[%clk 0:02:45]} 12. Bd2 {[%clk 0:02:42]}  Qc7 {[%clk 0:02:45]} 13. h3 {[%clk 0:02:41]}  a5 {[%clk 0:02:42]} 14. c3 {[%clk 0:02:08]}  a4 {[%clk 0:02:39]} 15. Bc2 {[%clk 0:02:08]}  O-O {[%clk 0:02:39]} 16. d4 {[%clk 0:02:07]}  Rfb8 {[%clk 0:02:32]} 17. b4 {[%clk 0:02:06]}  axb3 {[%clk 0:02:29]} 18. axb3 {[%clk 0:02:07]}  c5 {[%clk 0:02:29]} 19. Rxa8 {[%clk 0:02:06]}  Rxa8 {[%clk 0:02:29]} 20. c4 {[%clk 0:02:06]}  Rb8 {[%clk 0:02:17]} 21. cxd5 {[%clk 0:02:05]}  Nxd5 {[%clk 0:02:15]} 22. Be4 {[%clk 0:01:53]}  N7f6 {[%clk 0:02:12]} 23. Bxd5 {[%clk 0:01:53]}  Nxd5 {[%clk 0:02:13]} 24. dxc5 {[%clk 0:01:50]}  Qxc5 {[%clk 0:02:06]} 25. Rc1 {[%clk 0:01:48]}  Qb6 {[%clk 0:02:02]} 26. Nf4 {[%clk 0:01:40]}  Bxf4 {[%clk 0:01:52]} 27. Bxf4 {[%clk 0:01:40]}  Nxf4 {[%clk 0:01:51]} 28. Qxf4 {[%clk 0:01:41]}  Qxb3 {[%clk 0:01:50]} 29. Rc7 {[%clk 0:01:42]}  Rf8 {[%clk 0:01:45]} 30. h4 {[%clk 0:01:42]}  h6 {[%clk 0:01:45]} 31. Kh2 {[%clk 0:01:42]}  Qb8 {[%clk 0:01:42]} 32. g3 {[%clk 0:01:39]}  Qb6 {[%clk 0:01:41]} 33. Rd7 {[%clk 0:01:34]}  Qb5 {[%clk 0:01:41]} 34. Ra7 {[%clk 0:01:33]}  Qh5 {[%clk 0:01:41]} 35. Rb7 {[%clk 0:01:24]}  Rd8 {[%clk 0:01:38]} 36. Kh3 {[%clk 0:01:17]}  Rd1 {[%clk 0:01:23]} 37. Qe4 {[%clk 0:01:17]}  Rd8 {[%clk 0:01:15]} 38. Qf4 {[%clk 0:01:14]}  Qg6 {[%clk 0:01:08]} 39. Qf3 {[%clk 0:01:13]}  Rf8 {[%clk 0:01:08]} 40. h5 {[%clk 0:01:09]}  Qf6 {[%clk 0:01:05]} 41. Qxf6 {[%clk 0:01:08]}  gxf6 {[%clk 0:01:06]} 42. g4 {[%clk 0:00:59]}  Rd8 {[%clk 0:01:05]} 43. Rb5 {[%clk 0:00:51]}  Rd3+ {[%clk 0:00:54]} 44. Kg2 {[%clk 0:00:51]}  Kf8 {[%clk 0:00:54]} 45. f3 {[%clk 0:00:50]}  Rd5 {[%clk 0:00:52]} 46. Rb8+ {[%clk 0:00:48]}  Kg7 {[%clk 0:00:52]} 47. Kg3 {[%clk 0:00:49]}  f5 {[%clk 0:00:51]} 48. Re8 {[%clk 0:00:23]}  fxg4 {[%clk 0:00:49]} 49. fxg4 {[%clk 0:00:24]}  Rd3+ {[%clk 0:00:46]} 50. Kf4 {[%clk 0:00:24]}  Rd4+ {[%clk 0:00:45]} 51. Kf3 {[%clk 0:00:25]}  Rd1 {[%clk 0:00:45]} 52. Kf4 {[%clk 0:00:25]}  Rf1+ {[%clk 0:00:45]} 53. Kg3 {[%clk 0:00:25]}  Kf6 {[%clk 0:00:40]} 54. Rh8 {[%clk 0:00:25]}  Kg7 {[%clk 0:00:36]} 55. Re8 {[%clk 0:00:25]}  Ra1 {[%clk 0:00:36]} 56. Kf4 {[%clk 0:00:25]}  Ra4+ {[%clk 0:00:36]} 57. Kf3 {[%clk 0:00:26]}  Ra5 {[%clk 0:00:37]} 58. Kf4 {[%clk 0:00:26]}  Rg5 {[%clk 0:00:36]} 59. Kf3 {[%clk 0:00:25]}  Rc5 {[%clk 0:00:29]} 60. Kf4 {[%clk 0:00:25]}  Rc4+ {[%clk 0:00:29]} 61. Kf3 {[%clk 0:00:25]}  Kf6 {[%clk 0:00:29]} 62. Rg8 {[%clk 0:00:25]}  e5 {[%clk 0:00:19]} 63. Ke3 {[%clk 0:00:25]}  Rf4 {[%clk 0:00:18]} 64. Ke2 {[%clk 0:00:24]}  Ke6 {[%clk 0:00:11]} 65. Ke3 {[%clk 0:00:24]}  f6 {[%clk 0:00:10]} 66. Rg6 {[%clk 0:00:22]}  Kf7 {[%clk 0:00:10]} 67. Ke2 {[%clk 0:00:22]}  Ke7 {[%clk 0:00:05]} 68. Ke3 {[%clk 0:00:22]}  Ke6 {[%clk 0:00:06]} 69. Ke2 {[%clk 0:00:20]}  e4 {[%clk 0:00:06]} 70. Rg8 {[%clk 0:00:18]}  Ke5 {[%clk 0:00:04]} 71. Re8+ {[%clk 0:00:18]}  Kd4 {[%clk 0:00:04]} 72. Rd8+ {[%clk 0:00:18]}  Kc5 {[%clk 0:00:04]} 73. Rg8 {[%clk 0:00:17]}  Kd4 {[%clk 0:00:04]} 74. Re8 {[%clk 0:00:17]}  Kc5 {[%clk 0:00:03]} 75. Rg8 {[%clk 0:00:15]}  Rf3 {[%clk 0:00:02]} 76. Rg6 {[%clk 0:00:14]}  Kd4 {[%clk 0:00:02]} 77. Rxh6 {[%clk 0:00:14]}  Rg3 {[%clk 0:00:03]} 78. Rxf6 {[%clk 0:00:14]}  Rxg4 {[%clk 0:00:03]} 79. h6 {[%clk 0:00:15]}  Rh4 {[%clk 0:00:03]} 80. Rd6+ {[%clk 0:00:15]}  Ke5 {[%clk 0:00:03]} 81. Ra6 {[%clk 0:00:15]}  Rh3 {[%clk 0:00:03]} 82. Rb6 {[%clk 0:00:14]}  Kf4 {[%clk 0:00:03]} 83. Rf6+ {[%clk 0:00:14]}  Kg5 {[%clk 0:00:03]} 84. Ra6 {[%clk 0:00:14]}  Kf5 {[%clk 0:00:03]} 85. Rb6 {[%clk 0:00:14]}  Kf4 {[%clk 0:00:03]} 86. Rf6+ {[%clk 0:00:14]}  Ke5 {[%clk 0:00:04]} 87. Ra6 {[%clk 0:00:15]}  Kd4 {[%clk 0:00:03]} 88. Rd6+ {[%clk 0:00:15]}  Ke5 {[%clk 0:00:03]} 89. Ra6 {[%clk 0:00:16]}  Rh2+ {[%clk 0:00:03]} 90. Ke3 {[%clk 0:00:16]}  Rh3+ {[%clk 0:00:04]} 91. Ke2 {[%clk 0:00:17]} 1/2-1/2

[Event "December 12 Early 2023"]
[Site "https://www.chess.com"]
[Date "2023.12.12"]
[Round "10"]
[White "Demchenko, Anton"]
[Black "Vokhidov, Shamsiddin"]
[Result "0-1"]
[Board "7"]
[TimeControl "180+1"]
[WhiteFideId "4160258"]
[BlackFideId "14204223"]
[WhiteElo "2890"]
[BlackElo "3013"]
[WhiteTeam "SLO"]
[BlackTeam "UZB"]
[WhiteClock "0:00:03"]
[BlackClock "0:00:20"]

1. e4 {[%clk 0:03:00]}  c5 {[%clk 0:03:00]} 2. Nc3 {[%clk 0:03:01]}  Nc6 {[%clk 0:03:01]} 3. Bb5 {[%clk 0:03:01]}  Nd4 {[%clk 0:03:02]} 4. a4 {[%clk 0:03:02]}  a6 {[%clk 0:03:02]} 5. Bc4 {[%clk 0:03:02]}  e6 {[%clk 0:03:03]} 6. d3 {[%clk 0:03:02]}  Nf6 {[%clk 0:03:04]} 7. Nge2 {[%clk 0:03:03]}  d5 {[%clk 0:03:04]} 8. Ba2 {[%clk 0:03:04]}  Nxe2 {[%clk 0:03:03]} 9. Qxe2 {[%clk 0:03:04]}  Be7 {[%clk 0:03:01]} 10. O-O {[%clk 0:02:54]}  d4 {[%clk 0:03:01]} 11. Nb1 {[%clk 0:02:53]}  b5 {[%clk 0:03:01]} 12. Bg5 {[%clk 0:02:46]}  Bb7 {[%clk 0:02:59]} 13. Nd2 {[%clk 0:02:40]}  h6 {[%clk 0:02:56]} 14. Bxf6 {[%clk 0:02:39]}  Bxf6 {[%clk 0:02:55]} 15. f4 {[%clk 0:02:40]}  O-O {[%clk 0:02:40]} 16. f5 {[%clk 0:02:23]}  e5 {[%clk 0:02:26]} 17. Bb3 {[%clk 0:01:46]}  Bc6 {[%clk 0:02:24]} 18. Ra2 {[%clk 0:01:32]}  Bg5 {[%clk 0:02:22]} 19. Nf3 {[%clk 0:01:33]}  Be3+ {[%clk 0:02:22]} 20. Kh1 {[%clk 0:01:33]}  c4 {[%clk 0:02:21]} 21. dxc4 {[%clk 0:01:29]}  bxc4 {[%clk 0:02:21]} 22. Bxc4 {[%clk 0:01:28]}  Bxe4 {[%clk 0:02:22]} 23. Nxe5 {[%clk 0:01:20]}  Qc7 {[%clk 0:02:02]} 24. Ng4 {[%clk 0:01:01]}  Rac8 {[%clk 0:01:56]} 25. Nxe3 {[%clk 0:00:57]}  dxe3 {[%clk 0:01:56]} 26. b3 {[%clk 0:00:47]}  Rfe8 {[%clk 0:01:54]} 27. Bxa6 {[%clk 0:00:36]}  Rcd8 {[%clk 0:01:53]} 28. Bd3 {[%clk 0:00:37]}  Bxd3 {[%clk 0:01:47]} 29. cxd3 {[%clk 0:00:38]}  Qc3 {[%clk 0:01:46]} 30. a5 {[%clk 0:00:31]}  Qxb3 {[%clk 0:01:41]} 31. a6 {[%clk 0:00:31]}  Rxd3 {[%clk 0:01:27]} 32. a7 {[%clk 0:00:30]}  Rdd8 {[%clk 0:01:27]} 33. Rfa1 {[%clk 0:00:29]}  Ra8 {[%clk 0:01:26]} 34. Ra3 {[%clk 0:00:24]}  Qb6 {[%clk 0:01:20]} 35. h3 {[%clk 0:00:22]}  Re7 {[%clk 0:01:18]} 36. Ra6 {[%clk 0:00:14]}  Qd4 {[%clk 0:01:16]} 37. f6 {[%clk 0:00:15]}  Rexa7 {[%clk 0:01:07]} 38. Rxa7 {[%clk 0:00:08]}  Rxa7 {[%clk 0:01:08]} 39. Rd1 {[%clk 0:00:07]}  Ra1 {[%clk 0:01:06]} 40. Rxa1 {[%clk 0:00:04]}  Qxa1+ {[%clk 0:01:07]} 41. Kh2 {[%clk 0:00:04]}  Qe5+ {[%clk 0:01:05]} 42. g3 {[%clk 0:00:05]}  gxf6 {[%clk 0:01:04]} 43. Kg2 {[%clk 0:00:06]}  Qe4+ {[%clk 0:01:01]} 44. Kg1 {[%clk 0:00:05]}  f5 {[%clk 0:01:00]} 45. h4 {[%clk 0:00:01]}  Kh7 {[%clk 0:00:59]} 46. Qe1 {[%clk 0:00:01]}  Qf3 {[%clk 0:00:57]} 47. Kh2 {[%clk 0:00:02]}  f4 {[%clk 0:00:55]} 48. Qb1+ {[%clk 0:00:02]}  Kg7 {[%clk 0:00:38]} 49. Qa1+ {[%clk 0:00:02]}  f6 {[%clk 0:00:36]} 50. Qa7+ {[%clk 0:00:02]}  Kg6 {[%clk 0:00:36]} 51. gxf4 {[%clk 0:00:03]}  e2 {[%clk 0:00:28]} 52. Qg1+ {[%clk 0:00:02]}  Kh5 {[%clk 0:00:26]} 53. Qc5+ {[%clk 0:00:03]}  Kxh4 {[%clk 0:00:20]} 54. Qg1 {[%clk 0:00:03]}  Qh3# {[%clk 0:00:20]} 0-1

[Event "December 12 Early 2023"]
[Site "https://www.chess.com"]
[Date "2023.12.12"]
[Round "10"]
[White "Klymchuk, Andriy"]
[Black "Drygalov, Sergey"]
[Result "0-1"]
[Board "8"]
[TimeControl "180+1"]
[WhiteFideId "14140063"]
[BlackFideId "24171743"]
[WhiteElo "2853"]
[BlackElo "3005"]
[WhiteTeam "UKR"]
[BlackTeam "RUS"]
[WhiteClock "0:00:35"]
[BlackClock "0:00:22"]

1. e4 {[%clk 0:03:00]}  c5 {[%clk 0:03:00]} 2. Nf3 {[%clk 0:03:00]}  e6 {[%clk 0:03:01]} 3. d4 {[%clk 0:03:00]}  cxd4 {[%clk 0:03:01]} 4. Nxd4 {[%clk 0:03:00]}  a6 {[%clk 0:03:02]} 5. Bd3 {[%clk 0:03:00]}  Bc5 {[%clk 0:03:01]} 6. Nb3 {[%clk 0:02:59]}  Ba7 {[%clk 0:03:02]} 7. c4 {[%clk 0:02:58]}  Nc6 {[%clk 0:03:00]} 8. Qe2 {[%clk 0:02:58]}  d6 {[%clk 0:03:00]} 9. Be3 {[%clk 0:02:58]}  Nge7 {[%clk 0:02:56]} 10. O-O {[%clk 0:02:54]}  O-O {[%clk 0:02:52]} 11. Nc3 {[%clk 0:02:53]}  Ng6 {[%clk 0:02:52]} 12. Bxa7 {[%clk 0:02:51]}  Rxa7 {[%clk 0:02:52]} 13. Qe3 {[%clk 0:02:51]}  e5 {[%clk 0:02:49]} 14. Nd5 {[%clk 0:02:42]}  Be6 {[%clk 0:02:44]} 15. Rfd1 {[%clk 0:02:40]}  a5 {[%clk 0:02:43]} 16. a4 {[%clk 0:02:36]}  Ra8 {[%clk 0:02:42]} 17. Bf1 {[%clk 0:02:34]}  Bxd5 {[%clk 0:02:38]} 18. cxd5 {[%clk 0:02:20]}  Nb4 {[%clk 0:02:39]} 19. Rac1 {[%clk 0:02:19]}  f5 {[%clk 0:02:37]} 20. exf5 {[%clk 0:02:15]}  Rxf5 {[%clk 0:02:31]} 21. g3 {[%clk 0:02:15]}  Rf8 {[%clk 0:02:26]} 22. Bh3 {[%clk 0:02:06]}  Ne7 {[%clk 0:02:23]} 23. Be6+ {[%clk 0:02:04]}  Kh8 {[%clk 0:02:24]} 24. Rc4 {[%clk 0:01:59]}  Nf5 {[%clk 0:02:21]} 25. Qe4 {[%clk 0:01:50]}  Ne7 {[%clk 0:02:09]} 26. Nxa5 {[%clk 0:01:44]}  Qxa5 {[%clk 0:02:09]} 27. Rxb4 {[%clk 0:01:44]}  Qc5 {[%clk 0:02:10]} 28. Rf1 {[%clk 0:01:38]}  b6 {[%clk 0:01:32]} 29. Rc4 {[%clk 0:01:32]}  Qa5 {[%clk 0:01:30]} 30. b3 {[%clk 0:01:27]}  b5 {[%clk 0:01:26]} 31. Rb4 {[%clk 0:01:25]}  bxa4 {[%clk 0:01:26]} 32. Rxa4 {[%clk 0:01:25]}  Qc5 {[%clk 0:01:24]} 33. Rxa8 {[%clk 0:01:19]}  Rxa8 {[%clk 0:01:25]} 34. b4 {[%clk 0:01:19]}  Qb6 {[%clk 0:01:21]} 35. Rc1 {[%clk 0:01:19]}  Rb8 {[%clk 0:01:20]} 36. Rc4 {[%clk 0:01:17]}  Rf8 {[%clk 0:01:18]} 37. Rc2 {[%clk 0:01:16]}  Qb5 {[%clk 0:01:07]} 38. Kg2 {[%clk 0:01:15]}  Qb6 {[%clk 0:00:55]} 39. h4 {[%clk 0:01:12]}  Ng8 {[%clk 0:00:49]} 40. Bxg8 {[%clk 0:01:11]}  Kxg8 {[%clk 0:00:50]} 41. f3 {[%clk 0:01:09]}  Rb8 {[%clk 0:00:44]} 42. Qg4 {[%clk 0:01:07]}  Qa6 {[%clk 0:00:38]} 43. Qd7 {[%clk 0:00:52]}  Rf8 {[%clk 0:00:30]} 44. b5 {[%clk 0:00:47]}  Qa4 {[%clk 0:00:22]} 45. Qe6+ {[%clk 0:00:45]}  Kh8 {[%clk 0:00:22]} 46. Qxd6 {[%clk 0:00:35]}  Qxc2+ {[%clk 0:00:22]} 0-1

[Event "December 12 Early 2023"]
[Site "https://www.chess.com"]
[Date "2023.12.12"]
[Round "10"]
[White "Zhigalko, Sergei"]
[Black "Rasulov, Vugar"]
[Result "1-0"]
[Board "9"]
[TimeControl "180+1"]
[WhiteFideId "13502956"]
[BlackFideId "13402390"]
[WhiteElo "2954"]
[BlackElo "2903"]
[WhiteTeam "BLR"]
[BlackTeam "AZE"]
[WhiteClock "0:00:05"]
[BlackClock "0:00:00"]

1. e4 {[%clk 0:03:00]}  e5 {[%clk 0:03:00]} 2. Nf3 {[%clk 0:03:00]}  d6 {[%clk 0:03:00]} 3. d4 {[%clk 0:03:00]}  exd4 {[%clk 0:03:00]} 4. Qxd4 {[%clk 0:03:01]}  Nc6 {[%clk 0:02:57]} 5. Bb5 {[%clk 0:02:59]}  Bd7 {[%clk 0:02:56]} 6. Bxc6 {[%clk 0:03:00]}  Bxc6 {[%clk 0:02:57]} 7. Nc3 {[%clk 0:02:59]}  Nf6 {[%clk 0:02:55]} 8. Bg5 {[%clk 0:02:55]}  Be7 {[%clk 0:02:55]} 9. O-O-O {[%clk 0:02:55]}  O-O {[%clk 0:02:53]} 10. Rhe1 {[%clk 0:02:54]}  Nd7 {[%clk 0:02:50]} 11. Bxe7 {[%clk 0:02:54]}  Qxe7 {[%clk 0:02:51]} 12. Qd2 {[%clk 0:02:51]}  Nc5 {[%clk 0:02:41]} 13. Nd4 {[%clk 0:02:50]}  Ne6 {[%clk 0:02:32]} 14. Nd5 {[%clk 0:02:41]}  Qd8 {[%clk 0:02:20]} 15. Nf5 {[%clk 0:02:36]}  Re8 {[%clk 0:02:13]} 16. h4 {[%clk 0:02:22]}  Nc5 {[%clk 0:01:53]} 17. Qc3 {[%clk 0:02:13]}  f6 {[%clk 0:01:51]} 18. Qg3 {[%clk 0:02:08]}  g6 {[%clk 0:01:33]} 19. h5 {[%clk 0:01:59]}  g5 {[%clk 0:01:33]} 20. f3 {[%clk 0:01:07]}  Kh8 {[%clk 0:01:27]} 21. Qf2 {[%clk 0:01:03]}  Bxd5 {[%clk 0:01:20]} 22. Rxd5 {[%clk 0:01:03]}  Ne6 {[%clk 0:01:18]} 23. h6 {[%clk 0:00:51]}  Qd7 {[%clk 0:01:09]} 24. Qd2 {[%clk 0:00:50]}  Nf4 {[%clk 0:01:03]} 25. Rd4 {[%clk 0:00:48]}  Re5 {[%clk 0:00:55]} 26. Ne3 {[%clk 0:00:39]}  Rae8 {[%clk 0:00:48]} 27. Rd1 {[%clk 0:00:38]}  Qf7 {[%clk 0:00:43]} 28. Kb1 {[%clk 0:00:33]}  Kg8 {[%clk 0:00:39]} 29. Rc4 {[%clk 0:00:28]}  d5 {[%clk 0:00:31]} 30. Ra4 {[%clk 0:00:10]}  c6 {[%clk 0:00:30]} 31. b3 {[%clk 0:00:05]}  a6 {[%clk 0:00:30]} 32. Ng4 {[%clk 0:00:04]}  R5e6 {[%clk 0:00:28]} 33. Qc3 {[%clk 0:00:04]}  Rf8 {[%clk 0:00:14]} 34. g3 {[%clk 0:00:03]}  Nh5 {[%clk 0:00:10]} 35. exd5 {[%clk 0:00:02]}  cxd5 {[%clk 0:00:11]} 36. Rad4 {[%clk 0:00:01]}  Nxg3 {[%clk 0:00:10]} 37. Rxd5 {[%clk 0:00:02]}  Ne2 {[%clk 0:00:10]} 38. Qd2 {[%clk 0:00:02]}  Nf4 {[%clk 0:00:05]} 39. Rd7 {[%clk 0:00:02]}  Re7 {[%clk 0:00:06]} 40. Rxe7 {[%clk 0:00:02]}  Qxe7 {[%clk 0:00:07]} 41. Qd4 {[%clk 0:00:01]}  Qe6 {[%clk 0:00:06]} 42. a4 {[%clk 0:00:01]}  Ne2 {[%clk 0:00:05]} 43. Qd3 {[%clk 0:00:02]}  Nf4 {[%clk 0:00:05]} 44. Qd4 {[%clk 0:00:02]}  Kf7 {[%clk 0:00:04]} 45. Qb4 {[%clk 0:00:02]}  Qe7 {[%clk 0:00:03]} 46. Rd6 {[%clk 0:00:02]}  Kg6 {[%clk 0:00:02]} 47. Qd4 {[%clk 0:00:02]}  Ne2 {[%clk 0:00:01]} 48. Ne5+ {[%clk 0:00:02]}  Kh5 {[%clk 0:00:01]} 49. Qg4+ {[%clk 0:00:02]}  Kxh6 {[%clk 0:00:01]} 50. Qh3+ {[%clk 0:00:01]}  Kg7 {[%clk 0:00:01]} 51. Rd7 {[%clk 0:00:02]}  Re8 {[%clk 0:00:02]} 52. Rxe7+ {[%clk 0:00:02]}  Rxe7 {[%clk 0:00:03]} 53. Ng4 {[%clk 0:00:03]}  Kf7 {[%clk 0:00:01]} 54. Qxh7+ {[%clk 0:00:02]}  Ke6 {[%clk 0:00:02]} 55. Qe4+ {[%clk 0:00:02]}  Kf7 {[%clk 0:00:02]} 56. Qf5 {[%clk 0:00:02]}  Re6 {[%clk 0:00:02]} 57. Qh7+ {[%clk 0:00:02]}  Ke8 {[%clk 0:00:02]} 58. Qxb7 {[%clk 0:00:03]}  Nf4 {[%clk 0:00:01]} 59. Kb2 {[%clk 0:00:03]}  Kf8 {[%clk 0:00:01]} 60. a5 {[%clk 0:00:03]}  f5 {[%clk 0:00:02]} 61. Nf2 {[%clk 0:00:02]}  Re7 {[%clk 0:00:02]} 62. Qxa6 {[%clk 0:00:02]}  Kf7 {[%clk 0:00:02]} 63. Qc4+ {[%clk 0:00:02]}  Kf6 {[%clk 0:00:02]} 64. Nd3 {[%clk 0:00:03]}  Ne6 {[%clk 0:00:02]} 65. Qc3+ {[%clk 0:00:03]}  Kg6 {[%clk 0:00:02]} 66. a6 {[%clk 0:00:04]}  Rc7 {[%clk 0:00:03]} 67. Ne5+ {[%clk 0:00:05]}  Kf6 {[%clk 0:00:03]} 68. Nc6+ {[%clk 0:00:05]}  Kg6 {[%clk 0:00:00]} 69. a7 {[%clk 0:00:05]} 1-0